Cogmind - Beta 16.1 @@@ ROGUE MODE // 2026.02.08 @ 03:02:34 Player: H3-MLN Result: Destroyed by G-47 Trooper with Particle Gun Performance ------------- Evolutions (2) 1000 Regions Visited (9) 1800 Robots Destroyed (58) 290 Value Destroyed (2076) 2076 Prototype IDs (5) 100 Alien Tech Used (0) 0 Bonus (2078) 2078 TOTAL SCORE: 7344 Bonus ------- High Alert Combat Kills 200 Follower Combat Kills 278 Entered Garrisons 600 Used RIF Installer 1000 Cogmind --------- Core Integrity 0/550 Matter 277/300 Energy 99/100 System Corruption 9% Temperature Cool (9) Movement Core (50) Location -8/Garrison Parts ------- > --- POWER (1) -------- (None) > --- PROPULSION (3) --- (None) > --- UTILITY (5) ------ Relay Coupler [NC] (23) Relay Coupler [Swarmer] (28) Relay Coupler [Grunt] (36) Relay Coupler [Behemoth] (11) > --- WEAPON (2) ------- (None) > --- INVENTORY (5) ---- Relay Coupler [NC] (40) Trap Extractor (4/4 Blade) Blink Core Missile Launcher Peak State ------------ > --- POWER ------------ Light Nuclear Core > --- PROPULSION ------- Improved Flight Unit Xenon Bombardment Thruster Xenon Bombardment Thruster > --- UTILITY ---------- Medium Storage Unit System Shield System Shield Corruption Screen Trap Extractor > --- WEAPON ----------- Heavy Flail > --- INVENTORY -------- Xenon Bombardment Thruster Xenon Bombardment Thruster Xenon Bombardment Thruster Xenon Bombardment Thruster Relay Coupler [NC] Relay Coupler [Behemoth] Blink Core Missile Launcher Missile Launcher Blade Trap [Rating: 34] Favorites ----------- Power Light Nuclear Core Engine Light Ion Engine Power Core Light Nuclear Core Propulsion Xenon Bombardment Thruster Treads Light Treads Wheel Wheel Flight Unit Xenon Bombardment Thruster Utility Medium Storage Unit Device Trap Extractor Storage Medium Storage Unit Processor Corruption Screen Hackware System Shield Protection Light Armor Plating Weapon Heavy Flail Energy Gun Improved EM Shotgun Energy Cannon Advanced Beam Cannon Ballistic Gun Light Assault Rifle Launcher Rocket Launcher Impact Weapon Heavy Flail Special Melee Weapon Improved Datajack Build | -11 -10 -10 -9 -9 -9 -8 -8 -8 -8 ------- Run | Yrd Mat Min Mat Sto Gar Mat Gar Mat Gar Slots Evolved 4 | . . . 2 . . 2 . . . Power . | . . . . . . . . . . Propulsion 1 | . . . 1 . . . . . . Utility 3 | . . . 1 . . 2 . . . Weapon . | . . . . . . . . . . Parts Attached 63 | 4 1 . 5 11 7 21 14 . . Power 4 | . . . . 1 . 2 1 . . Engine 2 | . . . . . . 1 1 . . Core 2 | . . . . 1 . 1 . . . Reactor . | . . . . . . . . . . Propulsion 19 | 2 . . 3 2 3 5 4 . . Treads 2 | 2 . . . . . . . . . Leg . | . . . . . . . . . . Wheel 1 | . . . . . . 1 . . . Hover . | . . . . . . . . . . Flight 16 | . . . 3 2 3 4 4 . . Utility 24 | . . . 1 3 3 8 9 . . Device 5 | . . . 1 2 1 1 . . . Storage 3 | . . . . 1 1 1 . . . Processor 1 | . . . . . . 1 . . . Hackware 13 | . . . . . 1 3 9 . . Protection 2 | . . . . . . 2 . . . Artifact . | . . . . . . . . . . Weapon 16 | 2 1 . 1 5 1 6 . . . Energy Gun 1 | . . . . 1 . . . . . Energy Cannon 1 | . . . . 1 . . . . . Ballistic Gun 8 | 2 1 . 1 1 . 3 . . . Ballistic Cannon . | . . . . . . . . . . Launcher 2 | . . . . 1 . 1 . . . Special Weapon . | . . . . . . . . . . Impact Weapon 2 | . . . . 1 . 1 . . . Slashing Weapon . | . . . . . . . . . . Piercing Weapon . | . . . . . . . . . . Special Melee Weapon 2 | . . . . . 1 1 . . . Unidentified Prototypes 4 | . . . 1 2 . 1 . . . Parts Lost 27 | . . . . 1 8 5 11 2 . Power 2 | . . . . . 1 . 1 . . Propulsion 14 | . . . . 1 4 2 6 1 . Utility 7 | . . . . . 1 3 2 1 . Weapon 4 | . . . . . 2 . 2 . . Highest Loss Streak 6 | . . . . 1 3 2 6 4 . To Critical Strikes 1 | . . . . . . 1 . . . Average Backups 6 | 1 3 5 4 7 8 6 7 4 4 Power . | . . . . . . . . . . Propulsion 1 | . 2 4 2 1 . 1 . . . Utility 3 | 1 1 1 1 3 6 3 4 3 3 Weapon 1 | . . . . 1 1 1 1 1 1 Tool/Special . | . . . . . . . . . . Unused Backups 12 | . . . . 1 4 1 3 . 3 Power . | . . . . . . . . . . Propulsion . | . . . . . . . . . . Utility 9 | . . . . 1 4 . 2 . 2 Weapon 2 | . . . . . . 1 . . 1 Tool/Special 1 | . . . . . . . 1 . . Average Slot Usage (%) 71 | . 57 57 53 89 87 68 79 48 36 Core 1 | . . . . 9 7 . . . . Treads 3 | . 28 28 9 . . . . . . Flight 18 | . . . 20 33 29 18 21 5 . Device 5 | . . . 1 20 19 6 . . . Storage 5 | . . . . 6 10 9 4 . . Processor 1 | . . . . . . 6 . . . Hackware 17 | . . . . . 1 14 31 43 36 Protection 1 | . . . . . . 1 3 . . Ballistic Gun 5 | . 28 28 22 8 7 1 . . . Impact Weapon 6 | . . . . 6 10 7 8 . . Special Melee Weapon 3 | . . . . . . . 9 . . Peak Build Rating 34 | 5 5 5 11 21 21 34 32 22 14 Average Rating 20 | 3 4 5 7 18 17 22 28 19 14 On Entrance 11 | 1 5 5 5 11 21 8 26 22 14 Avg Prop Armor Cover (%) 20 | 24 26 26 26 . . 2 . . . Naked Turns . | . . . . . . . . . . Heaviest Build 25 | 3 4 3 6 19 19 25 17 . . Greatest Support 19 | 3 3 3 13 19 19 17 17 6 3 Greatest Overweight (x) 2 | . 1 . . . . 2 2 . . Average Overweight (x) . | . . . . . . . . . . Largest Inventory Capacity 10 | 5 5 5 5 10 10 10 10 5 5 Average Capacity 7 | 5 5 5 5 8 9 9 7 5 5 Most Carried 10 | 1 5 5 5 10 10 10 10 4 4 Average Carried 6 | 1 3 5 4 7 8 8 7 4 4 Final Capacity 10 | 5 5 5 5 10 5 10 5 5 5 Final Carried 10 | 1 5 5 5 10 5 10 4 4 4 Class Distribution -------------------- 50% | Mutant 28% | Bothacker-Mutant 9% | Sprinter 8% | Hacker-Mutant Dominant Class ---------------- Mutant | -10/Materials Mutant | -10/Mines Mutant | -9/Materials Sprinter | -9/Storage Sprinter | -9/Garrison Mutant | -8/Materials Bothacker-Mutant | -8/Garrison Mutant | -8/Materials Mutant | -8/Garrison Resources | -11 -10 -10 -9 -9 -9 -8 -8 -8 -8 ----------- Run | Yrd Mat Min Mat Sto Gar Mat Gar Mat Gar Matter Collected 1325 | 245 207 . 42 201 . 370 260 . . Remotely . | . . . . . . . . . . Salvage Created 1758 | 78 310 . . 148 21 873 328 . . Parts 85 | 3 20 . . 17 4 33 8 . . Haulers Intercepted 5 | . 1 . . . . 4 . . . Recyclers Shooed 1 | . . . . . . 1 . . . Parts Field Recycled . | . . . . . . . . . . Retrieved Matter . | . . . . . . . . . . Parts Self-Destructed . | . . . . . . . . . . Prevented . | . . . . . . . . . . Parts Restored . | . . . . . . . . . . Kills | -11 -10 -10 -9 -9 -9 -8 -8 -8 -8 ------- Run | Yrd Mat Min Mat Sto Gar Mat Gar Mat Gar Combat Hostiles Destroyed 36 | . 8 . . 5 2 14 7 . . Melee 12 | . . . . 1 . 7 4 . . Guns 10 | . 8 . . 1 . 1 . . . AOE 8 | . . . . 3 2 3 . . . Classes Destroyed 11 | 2 3 . . 2 . 3 1 . . Worker 5 | . . . . 1 . 4 . . . Builder 3 | . . . . 2 . 1 . . . Tunneler 2 | 1 . . . . . 1 . . . Hauler 5 | . 1 . . . . 4 . . . Recycler 4 | 1 1 . . . . 2 . . . Watcher 2 | . . . . . . 2 . . . Swarmer 18 | . 5 . . 3 2 7 1 . . Grunt 10 | . 3 . . 2 . 3 2 . . Sentry 5 | . . . . . . 3 2 . . Hunter 1 | . . . . . . 1 . . . Programmer 3 | . . . . . . . 3 . . Best Kill Streak 9 | 1 7 . . 5 2 9 2 . . Combat Bots Only 6 | . 6 . . 3 2 4 2 . . Max Kills in Single Turn 4 | 1 1 . . 2 2 4 1 . . Gunslinging . | . . . . . . . . . . Exploded 3 | . . . . 2 2 3 . . . Melee 1 | . . . . 1 . 1 1 . . Uniques/NPCs Destroyed . | . . . . . . . . . . Combat | -11 -10 -10 -9 -9 -9 -8 -8 -8 -8 -------- Run | Yrd Mat Min Mat Sto Gar Mat Gar Mat Gar Hostile Shots Fired 293 | . 31 2 14 34 77 68 55 9 3 Missed 109 | . 9 1 10 16 25 25 17 5 1 Hits 184 | . 22 1 4 18 52 43 38 4 2 Projectile 184 | . 22 1 4 18 52 43 38 4 2 AOE 6 | . . . . . . . 6 . . Critical Strikes 4 | . . . . . 1 3 . . . Damage Taken 2451 | . 209 10 50 219 657 504 713 58 31 Core 949 | . 56 . 12 73 248 130 373 26 31 Absorbed by Shields 100 | . . . . . 42 . 58 . . Core Remaining (%) 64 | 100 . 77 . . 16 . . . . Volleys Fired 71 | 12 31 . 3 7 3 14 1 . . Largest 2 | 2 2 . 2 2 1 2 1 . . Hottest 68 | 40 40 . 40 68 33 46 36 . . Shots Fired 124 | 24 62 . 6 9 3 19 1 . . Gun 114 | 24 62 . 6 4 . 18 . . . Cannon 1 | . . . . 1 . . . . . Launcher 9 | . . . . 4 3 1 1 . . Special . | . . . . . . . . . . Kinetic 114 | 24 62 . 6 4 . 18 . . . Thermal 1 | . . . . 1 . . . . . Explosive 9 | . . . . 4 3 1 1 . . Electromagnetic . | . . . . . . . . . . Robot Hit Streak 13 | 13 8 . 6 2 . 3 . . . Robot Miss Streak 3 | 2 3 . 1 1 . 3 . . . Penetration Max . | . . . . . . . . . . Secondary Targets 1 | . 1 . . . . . . . . Max Gunslinging Chain 1 | . 1 . . . . . . . . Shots Hit Robots 153 | 19 33 . 5 10 . 48 38 . . Core Hits 48 | 3 15 . 1 10 2 12 5 . . Critical Kills 5 | 1 . . . . . 2 2 . . Critical Parts Destroyed 10 | . . . . . . 8 2 . . Critical Strikes 16 | 1 . . . . . 11 4 . . Destroy 2 | 1 . . . . . 1 . . . Smash 14 | . . . . . . 10 4 . . Melee Attacks 196 | . . . . 11 45 61 79 . . Impact 170 | . . . . 11 45 61 53 . . Slashing . | . . . . . . . . . . Piercing . | . . . . . . . . . . Sneak Attacks 27 | . . . . 2 . 12 13 . . Combat Hostiles 1 | . . . . . . 1 . . . Follow-up Attacks . | . . . . . . . . . . Damage Inflicted 5432 | 200 381 . 56 629 107 2817 1242 . . Guns 822 | 200 381 . 56 39 . 146 . . . Cannons . | . . . . . . . . . . Explosions 656 | . . . . 297 107 252 . . . Melee 3939 | . . . . 293 . 2419 1227 . . Ramming 15 | . . . . . . . 15 . . Kinetic 822 | 200 381 . 56 39 . 146 . . . Thermal 220 | . . . . . . 220 . . . Explosive 436 | . . . . 297 107 32 . . . Electromagnetic . | . . . . . . . . . . Impact 3939 | . . . . 293 . 2419 1227 . . Slashing . | . . . . . . . . . . Piercing . | . . . . . . . . . . Highest Corruption 9 | . . . . . . . 9 9 9 Average Corruption 6 | . . . . . . . 6 9 9 Corruption Purged . | . . . . . . . . . . Corruption Blocked 2 | . . . . . . 2 . . . Effects 20 | . . . . . . . 15 1 4 Message Errors 2 | . . . . . . . 2 . . Matter Fused 8 | . . . . . . . 5 . 3 Heat Flow Errors 3 | . . . . . . . 2 . 1 Energy Discharges 2 | . . . . . . . 2 . . Data Loss (minor) 3 | . . . . . . . 2 1 . Data Loss (major) 2 | . . . . . . . 2 . . Overload Shots . | . . . . . . . . . . Overflow Damage 1556 | . . . . 20 22 1068 446 . . Projectiles . | . . . . . . . . . . Explosions 91 | . . . . 20 22 49 . . . Melee 1465 | . . . . . . 1019 446 . . Knockbacks 13 | . . . . . . 6 7 . . Impact 11 | . . . . . . 5 6 . . Kinetic . | . . . . . . . . . . Secondary 2 | . . . . . . 1 1 . . Self-Inflicted Damage 136 | . . . . . 107 . 29 . . Shots 4 | . . . . . 3 . 1 . . Rammed 2 | . . . . . . . 2 . . Targets Rammed 2 | . . . . . . . 2 . . Kicked . | . . . . . . . . . . Crushed . | . . . . . . . . . . Highest Temperature 262 | . 1 . . 4 13 8 124 . 262 Average Temperature 58 | . 1 . . 3 9 3 63 . 138 Received Heat Transfer 706 | . 66 . 30 96 280 171 18 27 18 Siege Activations . | . . . . . . . . . . Martial Activations . | . . . . . . . . . . Shielding Activations . | . . . . . . . . . . Robots Disrupted . | . . . . . . . . . . Combat Hostiles . | . . . . . . . . . . Robots Corrupted 13 | . . . . . . 10 3 . . Combat Hostiles 6 | . . . . . . 3 3 . . Parts Fried 19 | . . . . . . 16 3 . . Impact Corruptions 51 | . . . . . . 33 18 . . Robots Melted . | . . . . . . . . . . Combat Hostiles . | . . . . . . . . . . Parts Melted 3 | . . . . . . . 3 . . Heat Transferred 150 | . . . . . . 150 . . . Parts Sabotaged . | . . . . . . . . . . Parts Stolen . | . . . . . . . . . . Parts Stripped . | . . . . . . . . . . Power Chain Reactions . | . . . . . . . . . . Alert | -11 -10 -10 -9 -9 -9 -8 -8 -8 -8 ------- Run | Yrd Mat Min Mat Sto Gar Mat Gar Mat Gar Maximum Alert Level 3 | . . . . 1 2 3 3 2 1 Low Security (%) 26 | 100 100 100 100 92 34 . . . . Level 1 32 | . . . . 7 44 86 . . 100 Level 2 15 | . . . . . 21 8 28 100 . Level 3 24 | . . . . . . 4 71 . . Level 4 . | . . . . . . . . . . Level 5 . | . . . . . . . . . . High Security . | . . . . . . . . . . Max Security . | . . . . . . . . . . Peak Influence 947 | 5 153 51 100 231 576 708 947 478 349 Initial 455 | . . 51 15 42 152 275 455 451 284 Average 395 | 1 64 33 39 103 260 310 749 459 314 Influence Increases 2830 | 10 223 60 135 273 514 801 722 27 65 Destroy 0b10 Robot/C 900 | . 160 . . 100 40 280 320 . . Destroy 0b10 Robot/NC 105 | 10 10 . . 15 . 70 . . . Destroy Leader 154 | . 32 . . 30 . 82 10 . . Allied During Kill 40 | . . . . . . . 40 . . Trap Triggered on 0b10 10 | . . . . . . 10 . . . Successful Hack 90 | . 6 . . 4 14 47 7 12 . Disable Machine 165 | . . . . 45 . 60 60 . . Anti-Garrison Action 300 | . . . . . 100 . 150 . 50 Destroy Structure 166 | . . . . 19 60 27 60 . . Partial Spotted 120 | . . . 15 30 . 60 . 15 . Lose Combat Pursuer 780 | . 15 60 120 30 300 165 75 . 15 Influence Decreases 2481 | 10 90 152 76 138 183 667 495 516 154 Entered New Map 1415 | . . 82 26 58 83 291 245 476 154 Time Decay 616 | 10 90 50 50 70 . 326 . 20 . Lost Part 270 | . . . . 10 80 50 110 20 . Lost Ally 180 | . . 20 . . 20 . 140 . . Squads Dispatched 8 | . 2 . 2 1 . 3 . . . Investigation 3 | . 1 . 1 . . 1 . . . Extermination . | . . . . . . . . . . Reinforcement 5 | . 1 . 1 1 . 2 . . . Assault . | . . . . . . . . . . Garrison . | . . . . . . . . . . Intercept . | . . . . . . . . . . Searches Triggered . | . . . . . . . . . . Construction Impeded . | . . . . . . . . . . Haulers Reinforced . | . . . . . . . . . . Active Scanning Responses . | . . . . . . . . . . Cargo Convoy Interrupts . | . . . . . . . . . . Stealth | -11 -10 -10 -9 -9 -9 -8 -8 -8 -8 --------- Run | Yrd Mat Min Mat Sto Gar Mat Gar Mat Gar Distress Signals 8 | . . . 1 1 . 3 . 3 . Communications Jammed . | . . . . . . . . . . Distress Signals . | . . . . . . . . . . Times Spotted 142 | . 13 5 13 13 27 27 29 12 3 Peak Tracking Total 13 | . 4 5 8 8 13 6 6 12 2 Tactical Retreats 22 | . 1 2 3 2 3 7 3 . 1 Traps | -11 -10 -10 -9 -9 -9 -8 -8 -8 -8 ------- Run | Yrd Mat Min Mat Sto Gar Mat Gar Mat Gar Traps Triggered 11 | . 2 . . . 2 . 6 . 1 Indirectly . | . . . . . . . . . . Trap Hack Attempts 3 | . . . . . . . 3 . . Triggered . | . . . . . . . . . . Disarmed . | . . . . . . . . . . Reprogrammed 6 | . . . . . . 6 . . . Reused 1 | . . . . . . 1 . . . Traps Extracted 6 | . . . . . . 6 . . . Installed 4 | . . . . . . 1 3 . . Triggered 1 | . . . . . . 1 . . . Most Traps Carried 6 | . . . . . . 6 5 4 4 Machines | -11 -10 -10 -9 -9 -9 -8 -8 -8 -8 ---------- Run | Yrd Mat Min Mat Sto Gar Mat Gar Mat Gar Machines Disabled 15 | . . . . 3 2 4 6 . . Max in Single Turn 4 | . . . . 1 1 4 1 . . Garrison Relay 4 | . . . . . 2 . 2 . . Machines Repaired . | . . . . . . . . . . Machines Dismantled . | . . . . . . . . . . Machines Sabotaged . | . . . . . . . . . . Overloaded Fab Kills . | . . . . . . . . . . Hacking | -11 -10 -10 -9 -9 -9 -8 -8 -8 -8 --------- Run | Yrd Mat Min Mat Sto Gar Mat Gar Mat Gar Machines Accessed 25 | . 2 . 3 3 1 9 3 3 1 Terminals 20 | . 2 . 2 2 1 7 3 2 1 Fabricators . | . . . . . . . . . . Repair Stations 1 | . . . 1 . . . . . . Recycling Units . | . . . . . . . . . . Scanalyzers 1 | . . . . . . 1 . . . Garrison Access 3 | . . . . 1 . 1 . 1 . Total Hacks 73 | . 5 . 8 4 2 37 6 9 2 Successful 32 | . 1 . 1 2 1 21 1 5 . Failed 41 | . 4 . 7 2 1 16 5 4 2 Catastrophic 5 | . . . 1 . . 1 2 . 1 Database Lockouts . | . . . . . . . . . . Manual 39 | . 3 . 2 2 1 23 . 8 . Terminals 63 | . 5 . 6 3 2 31 6 8 2 Fabricators . | . . . . . . . . . . Repair Stations 2 | . . . 2 . . . . . . Recycling Units . | . . . . . . . . . . Scanalyzers 5 | . . . . . . 5 . . . Garrison Access 3 | . . . . 1 . 1 . 1 . Terminal Hacks 11 | . 1 . 1 1 1 5 1 1 . Robot Analysis 1 | . 1 . . . . . . . . Open Door 2 | . . . . 1 . . 1 . . Emergency Access Points 1 | . . . . . 1 . . . . Terminal Index 1 | . . . . . . 1 . . . Locate Traps 1 | . . . . . . 1 . . . Reprogram Traps 1 | . . . . . . 1 . . . Hauler Manifests 1 | . . . . . . 1 . . . Zone Layout 3 | . . . 1 . . 1 . 1 . Fabricator Hacks . | . . . . . . . . . . Repair Station Hacks . | . . . . . . . . . . Recycling Unit Hacks . | . . . . . . . . . . Scanalyzer 4 | . . . . . . 4 . . . Insert Component 1 | . . . . . . 1 . . . Analyze 1 | . . . . . . 1 . . . Retrieve Study 2 | . . . . . . 2 . . . Garrison Access Hacks 3 | . . . . 1 . 1 . 1 . Unlock Access 3 | . . . . 1 . 1 . 1 . Unauthorized Hacks 14 | . . . . . . 11 . 3 . Terminals 14 | . . . . . . 11 . 3 . Track 3 | . . . . . . 2 . 1 . Assimilate 1 | . . . . . . . . 1 . Botnet 3 | . . . . . . 2 . 1 . Operators 2 | . . . . . . 2 . . . Skim 5 | . . . . . . 5 . . . Fabricators . | . . . . . . . . . . Repair Stations . | . . . . . . . . . . Recycling Units . | . . . . . . . . . . Scanalyzers . | . . . . . . . . . . Garrison Access . | . . . . . . . . . . Data Cores Recovered . | . . . . . . . . . . Used . | . . . . . . . . . . Hacking Detections 18 | . 2 . 3 1 1 6 2 2 1 Full Trace Events 3 | . . . 1 . . . 1 . 1 Feedback Events 1 | . . . . . . . 1 . . Corruption 1 | . . . . . . . 1 . . Feedback Blocked . | . . . . . . . . . . Robot Schematics Acquired . | . . . . . . . . . . Robots Built . | . . . . . . . . . . Authchips . | . . . . . . . . . . Time . | . . . . . . . . . . Total Robot Build Rating . | . . . . . . . . . . Part Schematics Acquired 1 | . . . . . . 1 . . . Parts Built . | . . . . . . . . . . Authchips . | . . . . . . . . . . Time . | . . . . . . . . . . Total Part Build Rating . | . . . . . . . . . . Part Studies Acquired 2 | . . . . . . 2 . . . Parts Repaired . | . . . . . . . . . . Time . | . . . . . . . . . . Parts Recycled . | . . . . . . . . . . Recycled Matter . | . . . . . . . . . . Retrieved Matter . | . . . . . . . . . . Retrieved Components . | . . . . . . . . . . Parts Scanalyzed 1 | . . . . . . 1 . . . Part Schematics Acquired 1 | . . . . . . 1 . . . Parts Damaged . | . . . . . . . . . . Bothacking | -11 -10 -10 -9 -9 -9 -8 -8 -8 -8 ------------ Run | Yrd Mat Min Mat Sto Gar Mat Gar Mat Gar Used RIF Installer 2 | . . . . . 1 . 1 . . Patrol Navigation 1 | . . . . . . . 1 . . Robots Hacked 9 | . . . . . . . 9 . . Non-combat . | . . . . . . . . . . Combat 9 | . . . . . . . 9 . . Robot Hacks Applied 9 | . . . . . . . 9 . . scatter_targeting 1 | . . . . . . . 1 . . reboot_system 2 | . . . . . . . 2 . . overwrite_iff 3 | . . . . . . . 3 . . formatsys_high 3 | . . . . . . . 3 . . Relay Couplers Released 16 | . . . . . 8 . 8 . . Machine Destruction 16 | . . . . . 8 . 8 . . Attached 10 | . . . . . 1 . 9 . . Fabnet Peak Effective % . | . . . . . . . . . . Robots Rewired 6 | . . . . . . . 6 . . Allies Hacked . | . . . . . . . . . . Hacks Repelled . | . . . . . . . . . . Allies | -11 -10 -10 -9 -9 -9 -8 -8 -8 -8 -------- Run | Yrd Mat Min Mat Sto Gar Mat Gar Mat Gar Total Allies 14 | . . 1 . . . . 12 1 . Largest Group 5 | . . 1 . . . . 5 1 . Highest-Rated Group 95 | . . 31 . . . . 95 10 . Highest-Rated Ally 39 | . . 31 . . . . 39 10 . Total Orders 2 | . . . . . . . 2 . . STAY 1 | . . . . . . . 1 . . FOLLOW 1 | . . . . . . . 1 . . Ally Attacks 81 | . . 5 . . . . 76 . . Total Damage 880 | . . 42 . . . . 838 . . Kills 11 | . . . . . . . 11 . . Allies Corrupted . | . . . . . . . . . . Allies Melted . | . . . . . . . . . . Intel | -11 -10 -10 -9 -9 -9 -8 -8 -8 -8 ------- Run | Yrd Mat Min Mat Sto Gar Mat Gar Mat Gar Active Infowar (turns) . | . . . . . . . . . . Robot Analysis Total 1 | . 1 . . . . . . . . Derelict Logs Recovered 2 | . . 2 . . . . . . . Drone Launches 2 | . . . . . 2 . . . . Drone Recoveries . | . . . . . . . . . . Exploration | -11 -10 -10 -9 -9 -9 -8 -8 -8 -8 ------------- Run | Yrd Mat Min Mat Sto Gar Mat Gar Mat Gar Turns Passed 2795 | 80 185 109 106 154 322 737 924 53 125 Spaces Moved 3343 | 80 146 218 228 223 470 768 924 119 167 Core 730 | 80 146 218 67 . . . . 52 167 Treads . | . . . . . . . . . . Legs . | . . . . . . . . . . Wheels 122 | . . . . . . 122 . . . Hover . | . . . . . . . . . . Flight 2491 | . . . 161 223 470 646 924 67 . Fastest Speed 32 | 50 50 50 34 32 32 34 34 40 50 Average Speed 43 | 50 50 50 38 33 32 58 35 44 50 Slowest Speed 200 | 50 100 50 50 34 40 187 200 50 50 Overloaded Moves . | . . . . . . . . . . Propulsion Burnouts . | . . . . . . . . . . Robots Hopped 20 | . . . 5 . 9 4 2 . . Potential Cave-ins . | . . . . . . . . . . Cave-ins Triggered . | . . . . . . . . . . Exploration Rate (%) 39 | 4 31 66 36 48 56 56 61 23 14 Regions Visited 9 Branch Regions 2 Pre-discovered Areas . | . . . . . . . . . . Known Exits Taken 4 | . . 1 . 1 . 1 . 1 . Unknown Exits Taken 3 | 1 1 . 1 . . . . . . Scrap Searched . | . . . . . . . . . . Spaces Dug 63 | . . . . 6 26 5 26 . . Terrain Destroyed 96 | . . . . 19 26 25 26 . . Melee 30 | . . . . 1 9 5 15 . . Projectile . | . . . . . . . . . . AOE 66 | . . . . 18 17 20 11 . . Terrain Rammed . | . . . . . . . . . . Walls Destroyed . | . . . . . . . . . . Machines Disabled . | . . . . . . . . . . Actions | -11 -10 -10 -9 -9 -9 -8 -8 -8 -8 --------- Run | Yrd Mat Min Mat Sto Gar Mat Gar Mat Gar Total 4269 | 95 201 217 235 272 549 943 1431 118 208 Wait 436 | . 14 . . 3 17 51 325 . 26 Move 3298 | 79 145 217 217 223 453 760 919 118 167 Hop 18 | . . . 5 . 7 4 2 . . Pick Up 33 | . 4 . 2 7 3 12 5 . . Fast Attach 43 | 4 2 . 2 9 3 13 10 . . Attach 18 | . . . 2 1 4 7 4 . . Detach 4 | . . . . . 2 2 . . . Swap 16 | . 2 . 1 3 2 4 4 . . Drop 45 | . 3 . 3 8 8 14 9 . . Fire 71 | 12 31 . 3 7 3 14 1 . . Melee 196 | . . . . 11 45 61 79 . . Ram 2 | . . . . . . . 2 . . Kick . | . . . . . . . . . . Crush . | . . . . . . . . . . Escape Stasis 81 | . . . . . 2 . 64 . 15 Rewire 1 | . . . . . . . 1 . . Trap 7 | . . . . . . 1 6 . . Miscellaneous . | . . . . . . . . . . Route ------- -11/Scrapyard -10/Materials -10/Mines -9/Materials (discovered 2 exits: Mat / *Sto) -9/Storage -9/Garrison -8/Materials -8/Garrison (discovered 2 exits: *Mat x2) -8/Materials -8/Garrison History --------- Turn | Location | Event 3 | -11/Scrapyard | Discovered new exit (range 15) 81 | -11/Scrapyard | Entered Materials 239 | -10/Materials | Discovered new exit (range 9) 266 | -10/Materials | Entered Mines 269 | -10/Mines | Received a Mining Laser from a helpful Derelict 272 | -10/Mines | Identified exit to Materials 287 | -10/Mines | Learned location of 1 exit from Materials 289 | -10/Mines | Assembled infested the area 294 | -10/Mines | Assisted by a Guerilla fighting off Assembled 315 | -10/Mines | Build established: Mutant 375 | -10/Mines | Entered Materials 375 | -9/Materials | Evolved 2 slots: Propulsion x1, Utility x1 376 | -9/Materials | Identified exit to Materials 477 | -9/Materials | Discovered new exit (range 5) 481 | -9/Materials | Entered Storage 635 | -9/Storage | Identified exit to Garrison 635 | -9/Storage | Entered Garrison 731 | -9/Garrison | Triggered checkpoint 745 | -9/Garrison | Garrison Relay disabled 845 | -9/Garrison | Triggered checkpoint 867 | -9/Garrison | Triggered checkpoint 874 | -9/Garrison | Installed Relay Interface Framework 889 | -9/Garrison | Garrison Relay disabled 902 | -9/Garrison | Core integrity fell below 50% 917 | -9/Garrison | Triggered checkpoint 940 | -9/Garrison | Lost 3 parts (1n1u1w) 945 | -9/Garrison | Triggered checkpoint 949 | -9/Garrison | Discovered exit to Materials (range 13) 952 | -9/Garrison | Core integrity fell below 20% 957 | -9/Garrison | Entered Materials 957 | -8/Materials | Evolved 2 slots: Utility x2 985 | -8/Materials | Lost 3 parts (2n1w) 1694 | -8/Materials | Identified exit to Garrison 1694 | -8/Materials | Entered Garrison 1736 | -8/Garrison | Discovered new exit (range 11) 1799 | -8/Garrison | Garrison Relay disabled 1822 | -8/Garrison | Triggered checkpoint 1952 | -8/Garrison | Triggered checkpoint 2056 | -8/Garrison | Triggered checkpoint 2058 | -8/Garrison | Triggered checkpoint 2111 | -8/Garrison | Core integrity fell below 50% 2164 | -8/Garrison | Lost 6 parts (4n2u) 2192 | -8/Garrison | Expanded RIF knowledge: Patrol Navigation 2272 | -8/Garrison | Build established: Bothacker-Mutant 2427 | -8/Garrison | Discovered new exit (range 12) 2476 | -8/Garrison | Garrison Relay disabled 2478 | -8/Garrison | Triggered checkpoint 2540 | -8/Garrison | Triggered checkpoint 2562 | -8/Garrison | Core integrity fell below 20% 2592 | -8/Garrison | Lost 3 parts (1p1n1w) 2618 | -8/Garrison | Entered Materials 2669 | -8/Materials | Identified exit to Garrison 2671 | -8/Materials | Entered Garrison 2699 | -8/Garrison | Lost 4 parts (2n1u1w) 2796 | -8/Garrison | Destroyed by G-47 Trooper with Particle Gun Last Messages --------------- 02687_ Field strength at 70. 02688_ Field strength at 64. 02689_ Field strength at 58. 02690_ Field strength at 52. 02691_ Field strength at 46. 02692_ Field strength at 40. 02693_ Field strength at 34. 02694_ Field strength at 28. 02695_ Field strength at 22. 02696_ Field strength at 16. 02697_ Field strength at 10. 02698_ Field strength at 4. 02699_ Stasis field depleted. 02720_ System corrupted: Matter fused (-5). 02724_ Connecting with Door Terminal... 02724_ ALERT: Suspicious activity at Terminal G003. Transmitting hostile system tracking data. Sealed Heavy Doors activated. 02746_ System corrupted: Heat flow error (+293). 02776_ System corrupted: Matter fused (-10). Map ----- +----------------------------------------------------+ | ?????????????????????????????????????????? | | ?????????????????????????????????????????? | | ?????????????????????????????????????????? | | ?????????????????????????????????????????? | | ?????????????????????????????????????????? | | ?????????????????????????????????????????? | | ?????????????????????????????????????????? | | ????????????????????????????????####?????? | | ????????????????????????????????# ?????? | | ????????????????????????????????# ?????? | | ????????????????????????????????# #?????? | | ????????????????????????????????# #?????? | | ????????????????????????????????# #?????? | | ????????????????????????????????# #?????? | | ????????????###########?????????# ^#?????? | | ????????????#""""" #?????????# #?????? | | ????????????#" " #?????????# #?????? | | ????????????#" ########### ####### | | ??????????###" " ## | | ???????####""""g""" + | | ???# ??#T#### "g ## ####### ######## | | ???# #### ## #?????# #??????? | | ???# ## #?????# #??????? | | ???# ###### ## #?????# #??????? | | ????????????##### ###### #?????# #??????? | | ????????????????#@#????# #????? ??????? | | ????????????????# #????# #?????###??????? | | ????????????????# #????# #??????????????? | | ????????????????# #????# #??????????????? | | ????????????????# #??### #??????????????? | | ????????????????# #### #??????????????? | | ????????????????# + #??????????????? | | ????????????????###### #??????????????? | | ?????????????????????######??????????????? | | ?????????????????????????????????????????? | | ?????????????????????????????????????????? | | ?????????????????????????????????????????? | | ?????????????????????????????????????????? | | ?????????????????????????????????????????? | | ?????????????????????????????????????????? | | ?????????????????????????????????????????? | | ?????????????????????????????????????????? | | ?????????????????????????????????????????? | | ?????????????????????????????????????????? | | ?????????????????????????????????????????? | | ?????????????????????????????????????????? | | ?????????????????????????????????????????? | | ?????????????????????????????????????????? | | ?????????????????????????????????????????? | | ?????????????????????????????????????????? | +----------------------------------------------------+ Best States ------------- Heat Dissipation 42 Coolant Potential 50 Energy Generation 14 Energy Capacity 265 Matter Stores 300 Matter Capacity 300 Sight Range 16 Terrain Scan Density 10 Additional Mass Support 6 Corruption Block 8 Armor Coverage 225 Evasion (%) 63 Recoil Reduction 2 Defensive Hacking 20 Relay Coupler Types 5 Relay Coupler Value 134 Trap Extractor Capacity 4 Item Schematics ----------------- Xenon Bombardment Thruster | -8/Materials | Scanalyzed Robot Schematics ------------------ None Fabricated ------------ Nothing Repaired ---------- Nothing Studied --------- Hvy. Flail | -8/Materials | Hacked Missile Launcher | -8/Materials | Hacked Alien Tech Used ----------------- None Achievements -------------- None Challenges ------------ None Game ------ Seed FocalPoweredJetlance Manual? 0 Play Time 00:48:00 Cumulative 1341.5 hours Start 2026.02.08 @ 02:03:17 End 2026.02.08 @ 03:02:34 Sessions 1 Manual Loads 0 Difficulty Rogue Special Mode None Game No. 449 Rogue 444 Adventurer 4 Explorer 1 Win Type - Total 33 Types 16/5/2/2/0/2/2/0/2/2 Lore% 97 Gallery% 96 Achievement% 84 Wizard Run 0 Options --------- Layout 0 ASCII 0 Keyboard 0 Movement Numpad Keybinds 0 Fullscreen 2 Font 18/SmallcapsGlow Map View 76x50 Zoom Use 0% Tactical HUD 1 Map Filters NONE Filters NONE Steam 1 RUN: e0318433-1ad4-48b3-b1a1-760d8ae39156